bitfinex-derivatives/quotes_BTCF0:USTF0_20241210
["timestamp","ask_amount","ask_price","bid_price","bid_amount"]
[1733866425241,0.055446,97126.0,97124.0,8.078e-05]
[1733866425642,0.006,97126.0,97125.0,0.051446]
[1733866426448,0.004,97126.0,97125.0,0.051446]
[1733866426639,0.007,97126.0,97125.0,0.051446]
[1733866426838,0.003,97126.0,97125.0,0.051446]
[1733866427039,0.007,97126.0,97125.0,0.051446]
[1733866427237,0.007,97126.0,97124.0,8.078e-05]
[1733866427238,0.058446,97126.0,97124.0,8.078e-05]
[1733866427443,0.054446,97126.0,97124.0,8.078e-05]
[1733866428344,0.051446,97126.0,97124.0,8.078e-05]
[1733866428546,0.051446,97125.0,97124.0,8.078e-05]
[1733866429946,0.054446,97125.0,97124.0,8.078e-05]
[1733866430357,0.054446,97125.0,97124.0,0.05152778]
[1733866430358,0.003,97125.0,97124.0,0.05152778]
[1733866430749,0.0587,97148.0,97137.0,0.05144]
[1733866431053,0.112835,97146.0,97145.0,0.051436]
[1733866432451,0.113835,97146.0,97145.0,0.051436]
[1733866432651,0.001,97146.0,97145.0,0.051436]
[1733866433949,0.001,97146.0,97140.0,0.3608]
[1733866433950,0.051438,97141.0,97140.0,0.3608]
[1733866435646,0.052438,97141.0,97140.0,0.3608]
[1733866436250,0.051438,97141.0,97140.0,0.3638]
[1733866436642,0.051438,97141.0,97140.0,0.3608]
[1733866436848,0.053438,97141.0,97140.0,0.3608]
[1733866437257,0.051446,97125.0,97114.0,0.051452]
[1733866437452,0.051446,97125.0,97108.0,0.051455]
[1733866437754,0.051446,97125.0,97113.0,0.3608]
[1733866438451,0.051446,97125.0,97117.0,0.05145]
[1733866438653,0.3608,97131.0,97113.0,0.3608]
[1733866438654,0.051444,97130.0,97113.0,0.3608]
[1733866438844,0.051444,97130.0,97129.0,0.051443]
[1733866439044,0.16352138,97140.0,97123.0,0.3608]
[1733866439250,0.36436001,97141.0,97123.0,0.3608]
[1733866439251,0.36136001,97141.0,97123.0,0.3608]
[1733866439450,0.10172138,97140.0,97124.0,0.06818078]
[1733866439851,0.051445,97127.0,97126.0,0.051446]
[1733866440750,0.002,97130.0,97113.0,0.3608]
[1733866440751,0.051446,97125.0,97113.0,0.3608]
[1733866440945,0.051459,97101.0,97100.0,0.10052]
[1733866441150,0.051459,97101.0,97100.0,0.1]
[1733866441862,0.051467,97085.0,97084.0,0.36132]
[1733866442062,0.05146,97100.0,97076.0,0.00933374]
[1733866442063,0.10172138,97094.0,97076.0,0.00933374]
[1733866442355,0.10172138,97094.0,97089.0,0.051465]
[1733866442552,0.10172138,97094.0,97076.0,0.00933374]
[1733866442748,0.051465,97090.0,97076.0,0.25124605]
[1733866442960,0.051463,97093.0,97090.0,0.051465]
[1733866443354,0.001,97094.0,97093.0,0.051463]
[1733866443653,0.001,97094.0,97093.0,0.112863]
[1733866443851,0.051462,97096.0,97095.0,0.05146]
[1733866444056,7.317e-05,97101.0,97100.0,0.051459]
[1733866444258,7.317e-05,97101.0,97100.0,0.412259]
[1733866445568,0.3608,97146.0,97100.0,0.97943221]
[1733866445763,0.3608,97146.0,97136.0,0.3608]
[1733866445953,0.051438,97141.0,97140.0,0.051437]
[1733866446458,0.05154094,97141.0,97140.0,0.051437]
[1733866446652,0.05154094,97141.0,97126.0,0.42997233]
[1733866446653,0.00010294,97141.0,97135.0,0.051441]
[1733866446869,0.00010294,97141.0,97126.0,0.1873]
[1733866447064,0.051445,97128.0,97127.0,0.051445]
[1733866447265,0.051442,97133.0,97132.0,0.051442]
[1733866447760,0.00910294,97141.0,97123.0,0.00951984]
[1733866447761,0.3608,97136.0,97123.0,0.00951984]
[1733866447959,0.3608,97136.0,97120.0,0.24267233]
[1733866447960,0.3608,97136.0,97127.0,0.051445]
[1733866448164,0.3608,97136.0,97117.0,0.3608]
[1733866448165,0.412241,97136.0,97135.0,0.051441]
[1733866448356,0.06254094,97141.0,97140.0,0.051438]
[1733866448769,0.00210294,97141.0,97140.0,0.051438]
[1733866448970,0.00010294,97141.0,97140.0,0.051438]
[1733866449576,0.00910294,97141.0,97140.0,0.052438]
[1733866449773,0.00910294,97141.0,97140.0,0.001]
[1733866450176,0.00910294,97141.0,97116.0,0.24267233]
[1733866450177,0.05145,97118.0,97116.0,0.24267233]
[1733866450481,0.051452,97115.0,97113.0,0.051452]
[1733866451681,0.3608,97121.0,97110.0,0.36234454]
[1733866451682,0.051454,97111.0,97110.0,0.36234454]
[1733866452078,0.051454,97111.0,97110.0,0.00154454]
[1733866452678,0.05155694,97111.0,97110.0,0.00154454]
[1733866452878,0.11495694,97111.0,97110.0,0.003]
[1733866453083,0.11495694,97111.0,97084.0,0.2430474]
[1733866453084,0.051466,97088.0,97084.0,0.2430474]
[1733866453269,0.11595694,97111.0,97089.0,0.051465]
[1733866453270,0.051465,97091.0,97089.0,0.051465]
[1733866453474,0.09221022,97109.0,97089.0,0.051465]
[1733866453683,0.3608,97102.0,97083.0,0.04504004]
[1733866453978,0.051462,97096.0,97094.0,0.051462]
[1733866454384,0.05146,97100.0,97097.0,0.051461]
[1733866454677,0.05146,97100.0,97093.0,0.3608]
[1733866454678,0.051462,97096.0,97093.0,0.3608]
[1733866455073,0.051459,97101.0,97099.0,0.05146]
[1733866455781,0.004,97100.0,97099.0,0.05146]
[1733866456284,0.004,97100.0,97093.0,0.3608]
[1733866456285,0.051455,97109.0,97104.0,0.051457]
[1733866456469,0.051455,97109.0,97107.0,0.051455]
[1733866457181,0.3608,97109.0,97094.0,0.2430474]
[1733866457394,0.051458,97102.0,97097.0,0.051461]
[1733866457576,0.001,97101.0,97097.0,0.051461]
[1733866458081,0.001,97101.0,97093.0,0.3608]
[1733866458082,0.001,97101.0,97098.0,0.05146]
[1733866458388,0.051458,97102.0,97100.0,0.051459]
[1733866458580,0.051458,97102.0,97101.0,0.3608]
[1733866459673,0.051458,97102.0,97092.0,0.3608]
[1733866459875,0.051463,97093.0,97092.0,0.3608]
[1733866460581,0.051463,97093.0,97083.0,0.6038474]
[1733866460582,0.051468,97084.0,97083.0,0.36132]
[1733866460779,0.051468,97084.0,97083.0,0.3608]
[1733866462076,0.051468,97084.0,97083.0,0.3628]
[1733866462271,0.051468,97084.0,97083.0,0.002]
[1733866462679,0.051468,97084.0,97083.0,0.006]
[1733866463074,0.051468,97084.0,97083.0,0.002]
[1733866463275,0.05156933,97084.0,97083.0,0.006]
[1733866463475,0.051475,97070.0,97069.0,0.00010392]
[1733866464085,0.412275,97070.0,97069.0,0.00010392]
[1733866464283,0.412275,97070.0,97036.0,0.0566734]
[1733866464284,0.15273654,97057.0,97036.0,0.0566734]
[1733866464582,0.15273654,97057.0,97017.0,0.40963403]
[1733866464583,0.7216,97037.0,97017.0,0.04506293]
[1733866464785,0.412303,97018.0,97017.0,0.04506293]
[1733866465084,0.412303,97018.0,97008.0,0.36234617]
[1733866465085,0.051508,97009.0,97008.0,0.00154617]
[1733866465581,0.051512,97002.0,97000.0,0.1]
[1733866466278,0.3538,97001.0,97000.0,0.1]
[1733866466580,0.3608,97001.0,97000.0,0.1]
[1733866467175,0.051513,97000.0,96984.0,0.36088904]
[1733866467379,0.3608,96993.0,96984.0,0.36088904]
[1733866467580,0.051517,96993.0,96984.0,0.41241004]
[1733866467777,0.051518,96991.0,96984.0,0.36088904]
[1733866467974,0.051519,96988.0,96984.0,0.36088904]
[1733866468486,0.001,97001.0,96999.0,0.051513]
[1733866468676,0.001,97001.0,97000.0,0.3608]
[1733866468877,0.051508,97008.0,97002.0,0.051511]
[1733866469176,0.051508,97008.0,97000.0,0.3608]
[1733866469378,0.3608,97016.0,97000.0,0.3608]
[1733866469589,0.0515,97024.0,97017.0,0.051503]
[1733866469883,0.3608,97047.0,97011.0,0.3608]
[1733866470082,0.051488,97047.0,97017.0,0.051503]
[1733866470276,0.051484,97054.0,97044.0,0.051489]
[1733866470477,0.4291,97060.0,97044.0,0.051489]
[1733866470478,0.3608,97060.0,97044.0,0.051489]
[1733866470775,0.0685,97075.0,97044.0,0.051489]
[1733866470776,0.051481,97059.0,97044.0,0.051489]
[1733866471282,0.1362,97077.0,97044.0,0.051489]
[1733866471485,0.05148,97061.0,97044.0,0.051489]
[1733866471784,0.37017099,97081.0,97044.0,0.051489]
[1733866472079,0.051474,97073.0,97044.0,0.3]
[1733866472282,0.051474,97073.0,97069.0,0.3608]
[1733866472485,0.051474,97073.0,97070.0,0.051475]
[1733866472674,9.837e-05,97080.0,97071.0,0.3608]
[1733866472875,9.837e-05,97080.0,97079.0,0.3608]
[1733866473177,0.1,97100.0,97079.0,0.3608]
[1733866473386,0.1,97100.0,97099.0,0.41226]
[1733866474887,0.102,97100.0,97099.0,0.41226]
[1733866475375,0.103,97100.0,97099.0,0.41226]
[1733866475685,0.103,97100.0,97099.0,0.3608]
[1733866475881,0.103,97100.0,97084.0,0.00937409]
[1733866475882,0.051466,97088.0,97087.0,0.051466]
[1733866476082,0.33836346,97100.0,97082.0,0.3608]
[1733866476379,0.33836346,97100.0,97092.0,0.3608]
[1733866476380,0.103,97100.0,97092.0,0.3608]
[1733866476585,0.15446,97100.0,97096.0,0.051461]
[1733866477081,0.101,97100.0,97099.0,0.05146]
[1733866477877,0.102,97100.0,97099.0,0.05146]
[1733866478282,0.051463,97093.0,97092.0,0.3608]
[1733866478779,0.3608,97097.0,97082.0,0.3608]
[1733866479280,0.3608,97097.0,97076.0,0.00946114]
[1733866479281,0.051472,97077.0,97076.0,0.00946114]
[1733866479678,0.051472,97077.0,97068.0,0.3608]
[1733866479679,0.23536346,97086.0,97068.0,0.412276]
[1733866480277,0.051473,97075.0,97068.0,0.412276]
[1733866480480,0.23536346,97086.0,97068.0,0.3608]
[1733866480685,0.051476,97070.0,97068.0,0.3608]
[1733866481490,0.051476,97070.0,97068.0,0.3618]
[1733866482284,0.051476,97070.0,97068.0,0.005]
[1733866482598,0.3608,97069.0,97068.0,0.005]
[1733866482891,0.051483,97055.0,97043.0,0.3608]
[1733866483086,0.051483,97055.0,97050.0,0.3608]
[1733866483989,0.3608,97069.0,97050.0,0.3608]
[1733866484189,0.3608,97069.0,97062.0,0.3608]
[1733866484190,0.051476,97068.0,97062.0,0.3608]
[1733866484385,0.3608,97069.0,97062.0,0.3608]
[1733866484386,0.051479,97063.0,97062.0,0.3608]
[1733866485082,0.051479,97063.0,97057.0,0.051482]
[1733866485282,0.051479,97063.0,97062.0,0.3608]
[1733866485482,0.23536346,97070.0,97050.0,0.3608]
[1733866485685,0.051481,97060.0,97050.0,0.3608]
[1733866485889,0.23536346,97070.0,97050.0,0.3608]
[1733866486097,0.051483,97056.0,97050.0,0.3608]
[1733866486394,0.051484,97054.0,97019.0,0.051502]
[1733866486585,0.051499,97026.0,97019.0,0.051502]
[1733866486782,0.23536346,97030.0,97019.0,0.051502]
[1733866486981,0.23536346,97040.0,97012.0,0.37063768]
[1733866487197,0.051497,97030.0,97024.0,0.0515]
[1733866487495,0.051497,97030.0,97022.0,0.3608]
[1733866487496,0.051497,97030.0,97028.0,0.051497]
[1733866487892,0.00010992,97039.0,97022.0,0.412301]
[1733866487893,0.051499,97025.0,97022.0,0.412301]
[1733866488991,0.0515,97024.0,97022.0,0.412301]
[1733866489701,0.001,97025.0,97024.0,0.0515]
[1733866490296,0.002,97025.0,97024.0,0.0515]
[1733866490503,0.051493,97038.0,97033.0,0.051495]
[1733866490699,0.00010992,97039.0,97037.0,0.3608]
[1733866491105,0.3608,97038.0,97022.0,0.3668]
[1733866491301,0.0465,97023.0,97022.0,0.3608]
[1733866492788,0.0475,97023.0,97022.0,0.3608]
[1733866493796,0.0475,97023.0,97022.0,0.3648]
[1733866495001,0.0475,97023.0,97022.0,0.004]
[1733866496505,0.0475,97023.0,97020.0,0.3608]
[1733866496506,0.001,97023.0,97020.0,0.3608]
[1733866496697,0.0525,97023.0,97022.0,0.002]
[1733866497396,0.0515,97023.0,97022.0,0.002]
[1733866497597,0.0525,97023.0,97022.0,0.001]
[1733866499098,0.0525,97023.0,97022.0,0.003]
[1733866505802,0.3608,97049.0,97022.0,0.415301]
[1733866506004,0.3608,97049.0,97035.0,0.3608]
[1733866506305,0.3608,97049.0,97038.0,0.051492]
[1733866506508,0.15301832,97060.0,97038.0,0.051492]
[1733866506703,0.051489,97044.0,97038.0,0.051492]
[1733866506908,0.051489,97044.0,97035.0,0.3608]
[1733866506909,0.15301832,97050.0,97035.0,0.3608]
[1733866507113,0.051493,97036.0,97035.0,0.3608]
[1733866507411,0.051493,97036.0,97024.0,0.00987468]
[1733866507609,0.0515,97023.0,97022.0,0.003]
[1733866507814,0.0515,97023.0,97022.0,0.002]
[1733866508407,0.0515,97023.0,97011.0,0.3608]
[1733866508717,0.15301832,97034.0,97011.0,0.3608]
[1733866508718,0.09221022,97029.0,97014.0,0.051505]
[1733866509018,0.051506,97013.0,97011.0,0.3608]
[1733866509211,0.001,97023.0,97011.0,0.3608]
[1733866509415,0.051505,97014.0,97011.0,0.3608]
[1733866510314,0.002,97023.0,97011.0,0.3648]
[1733866510611,0.051506,97013.0,97011.0,0.3668]
[1733866510810,0.051506,97012.0,97011.0,0.3668]
[1733866511110,0.051506,97012.0,97011.0,0.416307]
[1733866511316,0.001,97023.0,97017.0,0.051501]
[1733866511317,0.051503,97018.0,97017.0,0.051501]
[1733866511912,0.051503,97018.0,97011.0,0.36132]
[1733866511913,0.09221022,97029.0,97011.0,0.3668]
[1733866512118,0.051497,97030.0,97029.0,0.051497]
[1733866512416,0.051499,97025.0,97024.0,0.0515]
[1733866512619,0.051499,97025.0,97024.0,0.4123]
[1733866512812,0.051499,97025.0,97024.0,0.3608]
[1733866513420,0.051499,97025.0,97024.0,0.4123]
[1733866514120,0.051499,97025.0,97024.0,0.3608]
[1733866514616,0.052499,97025.0,97024.0,0.4143]
[1733866515114,0.052499,97025.0,97024.0,0.4163]
[1733866515715,0.001,97025.0,97024.0,0.4163]
[1733866517606,0.052499,97025.0,97024.0,0.42578476]
[1733866518713,0.001,97025.0,97024.0,0.42578476]
[1733866519321,0.00010992,97039.0,97024.0,0.42578476]
[1733866519322,0.09232014,97039.0,97035.0,0.051494]
[1733866519621,0.09221022,97049.0,97041.0,0.051491]
[1733866519818,0.09221022,97049.0,97038.0,0.3608]
[1733866519819,0.09375661,97051.0,97047.0,0.3608]
[1733866520017,0.05303239,97051.0,97050.0,0.051486]
[1733866520729,0.051483,97055.0,97054.0,0.051482]
[1733866521026,0.09239668,97065.0,97051.0,0.3608]
[1733866521222,0.09239668,97065.0,97063.0,0.3608]
[1733866521409,0.051478,97065.0,97064.0,0.051478]
[1733866523120,0.051478,97064.0,97063.0,0.3608]
[1733866523817,0.051478,97064.0,97044.0,0.0671]
[1733866523818,0.051489,97044.0,97043.0,0.3608]
[1733866524028,0.051495,97032.0,97031.0,0.00986938]
[1733866524320,0.3608,97052.0,97027.0,0.05304386]
[1733866524321,0.051498,97028.0,97027.0,0.05304386]
[1733866524723,0.051498,97028.0,97027.0,0.00154586]
[1733866526022,0.001,97032.0,97031.0,0.051496]
[1733866526216,0.12294696,97052.0,97027.0,0.00154586]
[1733866526217,0.051485,97051.0,97050.0,0.051485]
[1733866526517,0.09224241,97060.0,97050.0,0.3608]
[1733866526820,0.051482,97059.0,97058.0,0.3608]
[1733866527023,0.051482,97059.0,97050.0,0.3608]
[1733866527024,0.3608,97066.0,97050.0,0.3608]
[1733866527317,0.09224241,97065.0,97051.0,0.051485]
[1733866527820,0.3608,97066.0,97051.0,0.051485]
[1733866527821,0.09224241,97064.0,97051.0,0.051485]
[1733866528217,0.051485,97051.0,97050.0,0.3608]
[1733866529124,0.001,97065.0,97064.0,0.051478]
[1733866529317,0.052478,97065.0,97064.0,0.3608]
[1733866529516,0.001,97065.0,97064.0,0.412278]
[1733866530815,0.051478,97067.0,97066.0,0.051477]
[1733866531021,0.051478,97065.0,97064.0,0.3608]
[1733866531215,0.051478,97065.0,97064.0,0.412278]
[1733866531819,0.059478,97065.0,97064.0,0.412278]
[1733866533512,0.059478,97065.0,97064.0,0.3608]
[1733866533720,0.008,97065.0,97050.0,0.412285]
[1733866534028,0.008,97065.0,97052.0,0.051485]
[1733866534029,0.051485,97053.0,97052.0,0.051485]
[1733866534214,0.051482,97059.0,97058.0,0.05148]
[1733866534418,0.008,97065.0,97064.0,0.051478]
[1733866534419,0.059478,97065.0,97064.0,0.051478]
[1733866534721,0.051481,97059.0,97058.0,0.3608]
[1733866534917,0.051481,97059.0,97047.0,0.051487]
[1733866534918,0.051487,97048.0,97047.0,0.051487]
[1733866535920,0.051484,97054.0,97053.0,0.051483]
[1733866536333,0.001,97065.0,97052.0,0.3608]
[1733866536627,0.056478,97065.0,97064.0,0.051478]
[1733866537016,0.051478,97065.0,97064.0,0.051478]
[1733866537418,0.3608,97067.0,97060.0,0.3608]
[1733866537613,0.051478,97066.0,97065.0,0.051477]
[1733866539020,0.05148,97061.0,97060.0,0.3608]
[1733866539323,0.05148,97061.0,97025.0,0.051499]
[1733866539324,0.051484,97053.0,97052.0,0.3608]
[1733866540417,0.051482,97059.0,97052.0,0.001]
[1733866540722,0.09224372,97064.0,97052.0,0.001]
[1733866540916,0.09224372,97063.0,97052.0,0.001]
[1733866541117,0.051483,97058.0,97057.0,0.051482]
[1733866541326,0.3608,97067.0,97063.0,0.051478]
[1733866541327,0.051479,97064.0,97063.0,0.051478]
[1733866541631,0.051481,97060.0,97059.0,0.051481]
[1733866541816,0.001,97064.0,97053.0,0.051484]
[1733866542025,0.052479,97064.0,97063.0,0.051478]
[1733866543525,0.051479,97064.0,97063.0,0.051478]
[1733866543721,0.004,97064.0,97052.0,0.3608]
[1733866543924,0.051484,97053.0,97052.0,0.3608]
[1733866544129,0.051484,97053.0,97036.0,0.0698]
[1733866544130,0.051489,97044.0,97036.0,0.0698]
[1733866544722,0.3608,97056.0,97033.0,0.051494]
[1733866544723,0.051494,97034.0,97033.0,0.051494]
[1733866544923,0.051494,97034.0,97029.0,0.36234583]
[1733866544924,0.051497,97030.0,97029.0,0.36234583]
[1733866546228,0.051497,97030.0,97029.0,0.3608]
[1733866546736,0.052497,97030.0,97029.0,0.3718]
[1733866547532,0.052497,97030.0,97029.0,0.3698]
[1733866547726,0.001,97030.0,97008.0,0.54367346]
[1733866547923,0.001,97030.0,97008.0,0.3608]
[1733866547924,0.051507,97010.0,97008.0,0.3608]
[1733866548127,0.05151,97004.0,96998.0,0.00154632]
[1733866548744,0.05151,97004.0,96998.0,0.05305932]
[1733866548939,0.05151,97004.0,96999.0,0.051513]
[1733866549237,0.05151,97004.0,96998.0,0.00154632]
[1733866549238,0.09235224,97017.0,97003.0,0.3608]
[1733866549429,0.09235224,97027.0,97014.0,0.3608]
[1733866549626,0.001,97030.0,97014.0,0.3608]
[1733866549841,0.051498,97027.0,97023.0,0.0515]
[1733866550132,0.051498,97027.0,97024.0,0.0515]
[1733866550532,0.051498,97027.0,97026.0,0.3608]
[1733866552134,0.052498,97027.0,97026.0,0.3608]
[1733866552738,0.052498,97027.0,97026.0,0.3648]
[1733866552932,0.052498,97027.0,97026.0,0.3658]
[1733866553138,0.001,97027.0,97026.0,0.3658]
[1733866555631,0.001,97027.0,97026.0,0.54867346]
[1733866555836,0.051488,97046.0,97026.0,0.6658]
[1733866556042,0.051488,97046.0,97045.0,0.412289]
[1733866556250,0.051488,97046.0,97045.0,0.3608]
[1733866557046,0.46918696,97065.0,97045.0,0.3608]
[1733866557047,0.09235224,97064.0,97045.0,0.3608]
[1733866557353,0.051481,97059.0,97056.0,0.051483]
[1733866557547,0.051482,97058.0,97056.0,0.051483]
[1733866558337,0.36661718,97100.0,97055.0,0.3608]
[1733866558338,0.09235224,97068.0,97055.0,0.3608]
[1733866558533,0.051483,97056.0,97055.0,0.3608]
[1733866559541,0.056483,97056.0,97055.0,0.3618]
[1733866560344,0.056483,97056.0,97055.0,0.001]
[1733866560534,0.060483,97056.0,97055.0,0.001]
[1733866561450,0.15283524,97056.0,97055.0,0.001]
[1733866561840,0.009,97056.0,97055.0,0.052483]
[1733866562045,0.009,97056.0,97055.0,0.413283]
[1733866562945,0.005,97056.0,97055.0,0.42322163]
[1733866563246,0.007,97056.0,97055.0,0.37173863]
[1733866563450,0.051496,97031.0,97030.0,0.02108089]
[1733866563750,0.412296,97031.0,97030.0,0.02108089]
[1733866563952,0.05151,97004.0,97003.0,0.3608]
[1733866564340,0.3608,97012.0,97009.0,0.051507]
[1733866564341,0.051507,97010.0,97009.0,0.051507]
[1733866564542,0.09226345,97018.0,97011.0,0.051507]
[1733866564543,0.09228399,97018.0,97011.0,0.051507]
[1733866564747,0.051503,97018.0,97017.0,0.412303]
[1733866564949,0.051503,97018.0,97017.0,0.051503]
[1733866565848,0.051503,97018.0,97017.0,0.412303]
[1733866566154,0.051503,97018.0,97017.0,0.419303]
[1733866566155,0.052503,97018.0,97017.0,0.419303]
[1733866566450,0.053503,97018.0,97017.0,0.421303]
[1733866568151,0.1536837,97042.0,97017.0,0.421303]
[1733866568152,0.12301793,97041.0,97031.0,0.051496]
[1733866568351,0.09224733,97050.0,97040.0,0.3608]
[1733866568551,0.051484,97054.0,97053.0,0.051484]
[1733866570148,0.054484,97054.0,97053.0,0.051484]
[1733866571556,0.054484,97054.0,97049.0,0.3608]
[1733866571557,0.051484,97054.0,97049.0,0.3608]
[1733866571855,0.051491,97041.0,97040.0,0.051491]
[1733866572152,0.051491,97041.0,97040.0,0.412291]
[1733866572369,0.051491,97041.0,97028.0,0.412298]
[1733866572370,0.051495,97033.0,97028.0,0.36132]
[1733866572654,0.051501,97023.0,97022.0,0.0515]
[1733866573452,0.051501,97023.0,97017.0,0.3608]
[1733866573657,0.3608,97033.0,97006.0,0.3608]
[1733866573658,0.051509,97007.0,97006.0,0.3608]
[1733866575555,0.052509,97007.0,97006.0,0.3688]
[1733866575759,0.053509,97007.0,97006.0,0.3718]
[1733866576755,0.053509,97007.0,97006.0,0.423309]
[1733866577657,0.002,97007.0,97006.0,0.423309]
[1733866578357,0.053509,97007.0,97006.0,0.3718]
[1733866578547,0.053509,97007.0,97006.0,0.011]
[1733866579853,0.053509,97007.0,97006.0,0.3718]
[1733866580358,0.053509,97007.0,97006.0,0.011]
[1733866580553,0.053509,97007.0,97006.0,0.3718]
[1733866580748,0.053509,97007.0,97006.0,0.011]
[1733866582153,0.002,97007.0,97006.0,0.062509]
[1733866583056,0.053509,97007.0,97006.0,0.062509]
[1733866583657,0.053509,97007.0,97006.0,0.011]
[1733866585155,0.053509,97007.0,97006.0,0.423309]
[1733866585156,0.002,97007.0,97006.0,0.423309]
[1733866586157,0.051496,97031.0,97030.0,0.051497]
[1733866586464,0.00214661,97036.0,97035.0,0.051494]
[1733866586658,0.0015466,97036.0,97035.0,0.051494]
[1733866587055,0.0015466,97036.0,97035.0,0.3608]
[1733866587262,0.0530396,97036.0,97035.0,0.3608]
[1733866587654,0.0530396,97036.0,97035.0,0.412294]
[1733866587855,0.0015466,97036.0,97035.0,0.412294]
[1733866588163,0.0025466,97036.0,97035.0,0.412294]
[1733866588557,0.0540396,97036.0,97035.0,0.412294]
[1733866588754,0.0025466,97036.0,97035.0,0.412294]
[1733866588961,0.001,97036.0,97035.0,0.413294]
[1733866589262,0.051485,97052.0,97051.0,0.051485]
[1733866589459,0.051485,97052.0,97051.0,0.412285]
[1733866590061,0.051485,97052.0,97051.0,0.3608]
[1733866590266,0.051493,97036.0,97035.0,0.3658]
[1733866590963,0.051493,97036.0,97035.0,0.412294]
[1733866591167,0.007,97052.0,97035.0,0.3608]
[1733866591466,0.051489,97044.0,97043.0,0.3608]
[1733866592255,0.051489,97044.0,97035.0,0.004]
[1733866592256,0.051493,97036.0,97035.0,0.004]
[1733866592461,0.051493,97036.0,97035.0,0.3618]
[1733866592965,0.051493,97036.0,97035.0,0.001]
[1733866593160,0.051493,97036.0,97035.0,0.3618]
[1733866593560,0.051499,97026.0,97024.0,0.0661]
[1733866593763,0.051499,97026.0,97025.0,0.051499]
[1733866594156,0.051499,97025.0,97024.0,0.0661]
[1733866594361,0.051499,97025.0,97024.0,0.0039]
[1733866595067,0.412299,97025.0,97024.0,0.0039]
[1733866595260,0.86534633,97025.0,97024.0,0.0039]
[1733866595566,0.89611693,97025.0,97024.0,0.0039]
[1733866595763,0.89611693,97025.0,96997.0,0.3608]
[1733866595764,0.05151,97004.0,96997.0,0.3608]
[1733866596067,0.05151,97004.0,97001.0,0.051512]
[1733866596262,0.05151,97004.0,96997.0,0.3608]
[1733866597167,0.05251,97004.0,97003.0,0.00654626]
[1733866597768,0.05251,97004.0,97003.0,0.05805726]
[1733866598969,0.001,97004.0,97003.0,0.05805726]
[1733866599267,0.05351,97004.0,97003.0,0.06605726]
[1733866600067,0.002,97004.0,97003.0,0.06605726]
[1733866600867,0.051503,97017.0,97016.0,0.051504]
[1733866601057,0.051503,97017.0,97016.0,0.3608]
[1733866602470,0.052503,97017.0,97016.0,0.3678]
[1733866603168,0.052503,97017.0,97016.0,0.3718]
[1733866603371,0.413303,97017.0,97016.0,0.011]
[1733866604068,0.51536805,97017.0,97016.0,0.011]
[1733866606075,0.42308648,97017.0,97016.0,0.011]
[1733866607276,0.051512,97003.0,96983.0,0.18299429]
[1733866607570,0.412312,97003.0,96988.0,0.00790233]
[1733866607761,0.412312,97003.0,96993.0,0.3608]
[1733866607968,0.051512,97003.0,96993.0,0.3608]
[1733866608172,0.051508,97010.0,97005.0,0.051511]
[1733866608471,0.051508,97010.0,97006.0,0.0653]
[1733866609663,0.052508,97010.0,97006.0,0.0653]
[1733866610167,0.05151,97008.0,97006.0,0.0693]
[1733866611874,0.05151,97008.0,97006.0,0.0673]
[1733866612077,0.05151,97008.0,97006.0,0.002]
[1733866612078,0.05251,97008.0,97006.0,0.002]
[1733866612378,0.05351,97008.0,97006.0,0.004]
[1733866616568,0.14580587,97008.0,97006.0,0.004]
[1733866618081,0.09229587,97007.0,97006.0,0.004]
[1733866618875,0.05351,97008.0,97006.0,0.004]
[1733866619276,0.001,97007.0,97006.0,0.004]
[1733866619678,0.002,97007.0,97006.0,0.004]
[1733866619883,0.001,97007.0,97006.0,0.002]
[1733866620186,0.09329587,97007.0,97006.0,0.004]
[1733866620377,0.001,97007.0,97006.0,0.004]
[1733866621584,0.05251,97008.0,97006.0,0.004]
[1733866621585,0.05351,97008.0,97006.0,0.004]
[1733866621787,0.001,97007.0,97006.0,0.004]
[1733866622082,0.002,97007.0,97006.0,0.004]
[1733866622676,0.001,97007.0,97006.0,0.002]
[1733866622983,0.05351,97008.0,97006.0,0.004]
[1733866623584,0.1243516,97007.0,97006.0,0.004]
[1733866623791,0.001,97007.0,97006.0,0.055511]
[1733866624090,0.001,97007.0,97006.0,0.59930529]
[1733866624271,0.001,97007.0,97006.0,0.416311]
[1733866624474,0.09250981,97014.0,97013.0,0.051511]
[1733866624788,0.051509,97017.0,97015.0,0.05151]
[1733866624971,0.10203396,97020.0,97012.0,0.18330832]
[1733866624972,0.051511,97013.0,97012.0,0.18330832]
[1733866625175,0.22538556,97025.0,97006.0,0.3628]
[1733866625176,0.051514,97007.0,97006.0,0.3648]
[1733866625778,0.051514,97007.0,97006.0,0.3628]
[1733866626180,0.09257241,97007.0,97006.0,0.414314]
[1733866626379,0.001,97007.0,97006.0,0.414314]
[1733866626578,0.052514,97007.0,97006.0,0.414314]
[1733866626790,0.053514,97007.0,97006.0,0.416314]
[1733866627178,0.053514,97007.0,97006.0,0.3648]
[1733866627374,0.053514,97007.0,97006.0,0.004]
[1733866628971,0.17694647,97007.0,97006.0,0.004]
[1733866629787,0.053514,97007.0,97006.0,0.004]
[1733866630178,0.002,97007.0,97006.0,0.416314]
[1733866632087,0.002,97007.0,97006.0,0.59962125]
[1733866632405,0.002,97007.0,97006.0,0.416314]
[1733866632791,0.002,97007.0,97006.0,0.59962125]
[1733866633186,0.002,97007.0,97006.0,0.416314]
[1733866633691,0.002,97007.0,97006.0,0.42408856]